Cogmind - Beta 16 @@@ ROGUE MODE // 2025.11.21 @ 17:45:09 // Winter2022/Polymind Player: Minty Result: Destroyed by G-34 Mercenary with Small Laser Performance ------------- Evolutions (1) 500 Regions Visited (3) 600 Robots Destroyed (67) 335 Value Destroyed (1935) 1935 Prototype IDs (0) 0 Alien Tech Used (0) 0 Bonus (2966) 2966 TOTAL SCORE: 5856 Bonus ------- Polymind Skill 2838 High Alert Combat Kills 128 Cogmind --------- Core Integrity 0/400 Matter 0/0 Energy 215/215 System Corruption 0% Temperature Cool (6) Movement Walking (120) Location -9/Storage Parts ------- > --- POWER (1) -------- Improved Ion Engine > --- PROPULSION (2) --- Improved Aluminum Leg > --- UTILITY (2) ------ Melee Analysis Suite Core Shielding > --- WEAPON (1) ------- Katana > --- INVENTORY (1) ---- (None) Peak State ------------ > --- POWER ------------ Light Deuterium Engine > --- PROPULSION ------- Combat Airjet Combat Airjet > --- UTILITY ---------- Launcher Guidance Computer Improved Light Armor Plating Shock Absorption System > --- WEAPON ----------- Mini Grenade Launcher > --- INVENTORY -------- (None) [Rating: 26] Favorites ----------- Power Light Ion Engine Engine Light Ion Engine Power Core Light Nuclear Core Propulsion Wheel Treads Light Treads Leg Aluminum Leg Wheel Wheel Hover Unit Combat Airjet Utility Improved Terrain Scanner Device Improved Terrain Scanner Processor Launcher Guidance Computer Protection Light Armor Plating Weapon Mining Laser Energy Gun Beam Rifle Ballistic Gun Heavy Assault Rifle Launcher Mini Grenade Launcher Special Weapon Mining Laser Slashing Weapon Katana Build | -11 -10 -9 -9 ------- Run | Yrd Mat Mat Sto Slots Evolved . | . . . . Power . | . . . . Propulsion . | . . . . Utility . | . . . . Weapon . | . . . . Parts Attached . | . . . . Power . | . . . . Engine . | . . . . Core . | . . . . Reactor . | . . . . Propulsion . | . . . . Treads . | . . . . Leg . | . . . . Wheel . | . . . . Hover . | . . . . Flight . | . . . . Utility . | . . . . Device . | . . . . Storage . | . . . . Processor . | . . . . Hackware . | . . . . Protection . | . . . . Artifact . | . . . . Weapon . | . . . . Energy Gun . | . . . . Energy Cannon . | . . . . Ballistic Gun . | . . . . Ballistic Cannon . | . . . . Launcher . | . . . . Special Weapon . | . . . . Impact Weapon . | . . . . Slashing Weapon . | . . . . Piercing Weapon . | . . . . Special Melee Weapon . | . . . . Unidentified Prototypes . | . . . . Parts Lost 17 | . 1 11 5 Power 2 | . . 2 . Propulsion 5 | . . 4 1 Utility 6 | . 1 3 2 Weapon 4 | . . 2 2 Highest Loss Streak 3 | . 1 3 3 To Critical Strikes . | . . . . Average Backups . | . . . . Power . | . . . . Propulsion . | . . . . Utility . | . . . . Weapon . | . . . . Tool/Special . | . . . . Unused Backups . | . . . . Power . | . . . . Propulsion . | . . . . Utility . | . . . . Weapon . | . . . . Tool/Special . | . . . . Average Slot Usage (%) 85 | . 99 81 86 Engine 10 | . 14 6 13 Core 1 | . . 3 . Treads 8 | . . 9 11 Leg 10 | . . 13 11 Hover 6 | . 28 3 . Device 13 | . 13 16 10 Processor 5 | . 14 1 5 Protection 8 | . 14 5 10 Energy Gun 8 | . . 11 6 Ballistic Gun 5 | . . 6 7 Launcher 3 | . 14 1 . Slashing Weapon 2 | . . . 5 Peak Build Rating 26 | 26 26 22 13 Average Rating 9 | 8 25 10 10 On Entrance 13 | . 26 22 7 Avg Prop Armor Cover (%) 27 | . . 27 . Naked Turns 9 | . . 9 . Heaviest Build 18 | 12 12 18 18 Greatest Support 40 | 24 24 40 40 Greatest Overweight (x) 4 | . . 4 4 Average Overweight (x) . | . . . . Largest Inventory Capacity 1 | 1 1 1 1 Average Capacity . | . 1 . 1 Most Carried . | . . . . Average Carried . | . . . . Final Capacity 1 | 1 1 1 1 Final Carried . | . . . . Class Distribution -------------------- 46% | Sentry 21% | Demolisher 17% | Grunt 13% | Duelist Dominant Class ---------------- Demolisher | -10/Materials Sentry | -9/Materials Sentry | -9/Storage Resources | -11 -10 -9 -9 ----------- Run | Yrd Mat Mat Sto Matter Collected 409 | . 123 226 60 Remotely . | . . . . Salvage Created 2224 | . 231 957 1036 Parts 124 | . 21 52 51 Haulers Intercepted 2 | . 1 . 1 Recyclers Shooed 2 | . . 2 . Parts Field Recycled . | . . . . Retrieved Matter . | . . . . Parts Self-Destructed . | . . . . Prevented . | . . . . Parts Restored . | . . . . Kills | -11 -10 -9 -9 ------- Run | Yrd Mat Mat Sto Combat Hostiles Destroyed 52 | . 14 24 14 Melee 5 | . . . 5 Guns 28 | . . 20 8 AOE 18 | . 14 4 . Classes Destroyed 11 | . 3 7 1 Worker 5 | . 1 2 2 Builder 2 | . . 1 1 Hauler 2 | . 1 . 1 Recycler 2 | . . 2 . Operator 3 | . . 2 1 Watcher 1 | . . 1 . Swarmer 9 | . . 9 . Grunt 26 | . 14 7 5 Brawler 1 | . . . 1 Sentry 15 | . . 7 8 Demolisher 1 | . . 1 . Best Kill Streak 8 | . 7 8 8 Combat Bots Only 6 | . 6 6 6 Max Kills in Single Turn 4 | . 4 3 1 Gunslinging 1 | . . 1 . Exploded 3 | . 3 1 . Melee 1 | . . . 1 Uniques/NPCs Destroyed . | . . . . Combat | -11 -10 -9 -9 -------- Run | Yrd Mat Mat Sto Hostile Shots Fired 273 | 6 43 146 78 Missed 71 | . 14 39 18 Hits 202 | 6 29 107 60 Melee 3 | . . . 3 Projectile 199 | 6 29 107 57 AOE 5 | 5 . . . Critical Strikes 5 | . . 3 2 Damage Taken 2585 | 82 353 1315 835 Core 541 | 58 82 280 121 Absorbed by Shields . | . . . . Redirected to Shielding 15 | . . . 15 Ignored by Resistances 127 | 98 . 20 9 Core Remaining (%) 60 | 76 44 . . Volleys Fired 127 | 2 19 76 30 Largest 2 | 1 1 2 2 Hottest 100 | 100 30 79 79 Shots Fired 191 | 2 19 117 53 Gun 160 | . . 107 53 Cannon . | . . . . Launcher 29 | . 19 10 . Special 2 | 2 . . . Kinetic 71 | . . 41 30 Thermal 91 | 2 . 66 23 Explosive 29 | . 19 10 . Electromagnetic . | . . . . Robot Hit Streak 15 | . 9 15 8 Robot Miss Streak 3 | . 1 3 3 Penetration Max . | . . . . Secondary Targets 1 | . . 1 . Max Gunslinging Chain 1 | . . 1 . Shots Hit Robots 145 | . 15 78 52 Core Hits 106 | . 28 51 27 Critical Kills . | . . . . Critical Parts Destroyed . | . . . . Critical Strikes 8 | . . 5 3 Burn 6 | . . 5 1 Sever 2 | . . . 2 Melee Attacks 17 | . . . 17 Impact . | . . . . Slashing 17 | . . . 17 Piercing . | . . . . Sneak Attacks 6 | . . . 6 Combat Hostiles 1 | . . . 1 Follow-up Attacks . | . . . . Damage Inflicted 4780 | . 1489 1944 1347 Guns 1723 | . . 1172 551 Cannons . | . . . . Explosions 2237 | . 1489 748 . Melee 796 | . . . 796 Ramming 24 | . . 24 . Kinetic 720 | . . 415 305 Thermal 1003 | . . 757 246 Explosive 2237 | . 1489 748 . Electromagnetic . | . . . . Impact . | . . . . Slashing 796 | . . . 796 Piercing . | . . . . Highest Corruption . | . . . . Average Corruption . | . . . . Corruption Purged . | . . . . Corruption Blocked . | . . . . Overload Shots . | . . . . Overflow Damage 10 | . . . 10 Projectiles . | . . . . Explosions . | . . . . Melee 10 | . . . 10 Knockbacks . | . . . . Impact . | . . . . Kinetic . | . . . . Secondary . | . . . . Self-Inflicted Damage 19 | . . 19 . Shots 2 | . . 2 . Rammed 4 | . . 4 . Targets Rammed 22 | . . 22 . Kicked 18 | . . 18 . Crushed . | . . . . Highest Temperature 274 | 150 26 135 274 Average Temperature 65 | 76 9 34 111 Received Heat Transfer 948 | . 195 405 348 Effects 2 | . . . 2 Interference 2 | . . . 2 Siege Activations . | . . . . Martial Activations . | . . . . Shielding Activations . | . . . . Robots Disrupted . | . . . . Combat Hostiles . | . . . . Robots Corrupted . | . . . . Combat Hostiles . | . . . . Parts Fried . | . . . . Impact Corruptions . | . . . . Robots Melted 1 | . . . 1 Combat Hostiles 1 | . . . 1 Parts Melted 10 | . . 9 1 Heat Transferred 2849 | . . 2183 666 Parts Sabotaged . | . . . . Parts Stolen . | . . . . Parts Stripped . | . . . . Power Chain Reactions . | . . . . Alert | -11 -10 -9 -9 ------- Run | Yrd Mat Mat Sto Maximum Alert Level 2 | . 1 2 2 Low Security (%) 67 | 100 45 7 . Level 1 19 | . 54 31 83 Level 2 12 | . . 60 16 Level 3 . | . . . . Level 4 . | . . . . Level 5 . | . . . . High Security . | . . . . Max Security . | . . . . Peak Influence 613 | . 358 613 438 Initial 255 | . . 150 255 Average 126 | . 213 427 302 Influence Increases 1756 | . 458 851 447 Destroy 0b10 Robot/C 1040 | . 280 480 280 Destroy 0b10 Robot/NC 75 | . 10 40 25 Destroy Leader 246 | . 52 112 82 Successful Hack 26 | . . 26 . Disable Machine 75 | . 30 45 . Destroy Structure 204 | . 86 118 . Lose Combat Pursuer 90 | . . 30 60 Influence Decreases 1318 | . 100 604 614 Entered New Map 558 | . . 208 350 Time Decay 590 | . 90 286 214 Lost Part 170 | . 10 110 50 Squads Dispatched 7 | . 2 2 3 Investigation 4 | . 2 1 1 Extermination . | . . . . Reinforcement 2 | . . 1 1 Assault 1 | . . . 1 Garrison . | . . . . Intercept . | . . . . Searches Triggered . | . . . . Construction Impeded 1 | . . 1 . Haulers Reinforced . | . . . . Active Scanning Responses . | . . . . Cargo Convoy Interrupts . | . . . . Stealth | -11 -10 -9 -9 --------- Run | Yrd Mat Mat Sto Distress Signals 3 | . . 2 1 Communications Jammed . | . . . . Distress Signals . | . . . . Times Spotted 98 | 21 15 36 26 Peak Tracking Total 20 | 20 5 9 8 Tactical Retreats 7 | 1 . 2 4 Traps | -11 -10 -9 -9 ------- Run | Yrd Mat Mat Sto Traps Triggered 1 | . 1 . . Indirectly . | . . . . Trap Hack Attempts . | . . . . Triggered . | . . . . Disarmed . | . . . . Reprogrammed . | . . . . Reused . | . . . . Traps Extracted . | . . . . Installed . | . . . . Triggered . | . . . . Objects Rigged 2 | . . 2 . Exploded 1 | . . 1 . Machines | -11 -10 -9 -9 ---------- Run | Yrd Mat Mat Sto Machines Disabled 5 | . 2 3 . Max in Single Turn 2 | . 1 2 . Machines Repaired . | . . . . Machines Dismantled . | . . . . Machines Sabotaged . | . . . . Overloaded Fab Kills . | . . . . Hacking | -11 -10 -9 -9 --------- Run | Yrd Mat Mat Sto Machines Accessed 8 | . 1 5 2 Terminals 8 | . 1 5 2 Fabricators . | . . . . Repair Stations . | . . . . Recycling Units . | . . . . Scanalyzers . | . . . . Garrison Access . | . . . . Total Hacks 24 | . 3 15 6 Successful 11 | . 1 10 . Failed 13 | . 2 5 6 Catastrophic 3 | . . 3 . Database Lockouts . | . . . . Manual 17 | . 3 11 3 Terminals 24 | . 3 15 6 Fabricators . | . . . . Repair Stations . | . . . . Recycling Units . | . . . . Scanalyzers . | . . . . Garrison Access . | . . . . Terminal Hacks 6 | . . 6 . Robot Analysis 2 | . . 2 . Branch Access Points 1 | . . 1 . Alert Level 1 | . . 1 . Hauler Manifests 2 | . . 2 . Fabricator Hacks . | . . . . Repair Station Hacks . | . . . . Recycling Unit Hacks . | . . . . Scanalyzer . | . . . . Garrison Access Hacks . | . . . . Unauthorized Hacks 5 | . 1 4 . Terminals 5 | . 1 4 . Botnet 1 | . . 1 . Detonate 1 | . . 1 . Disrupt 1 | . . 1 . Skim 1 | . . 1 . Sabotage 1 | . 1 . . Fabricators . | . . . . Repair Stations . | . . . . Recycling Units . | . . . . Scanalyzers . | . . . . Garrison Access . | . . . . Data Cores Recovered 2 | . . 2 . Used 1 | . . 1 . Hacking Detections 7 | . 1 4 2 Full Trace Events 3 | . . 2 1 Feedback Events . | . . . . Feedback Blocked . | . . . . Robot Schematics Acquired . | . . . . Robots Built . | . . . . Authchips . | . . . . Time . | . . . . Total Robot Build Rating . | . . . . Part Schematics Acquired . | . . . . Parts Built . | . . . . Authchips . | . . . . Time . | . . . . Total Part Build Rating . | . . . . Part Studies Acquired . | . . . . Parts Repaired . | . . . . Time . | . . . . Parts Recycled . | . . . . Recycled Matter . | . . . . Retrieved Matter . | . . . . Retrieved Components . | . . . . Parts Scanalyzed . | . . . . Part Schematics Acquired . | . . . . Parts Damaged . | . . . . Bothacking | -11 -10 -9 -9 ------------ Run | Yrd Mat Mat Sto Used RIF Installer . | . . . . Robots Hacked 5 | 1 . 2 2 Non-combat . | . . . . Combat 5 | 1 . 2 2 Robot Hacks Applied 7 | 1 . 2 4 find_shortcuts 5 | 1 . 2 2 find_garrison 2 | . . . 2 Relay Couplers Released . | . . . . Fabnet Peak Effective % . | . . . . Robots Rewired . | . . . . Allies Hacked . | . . . . Hacks Repelled . | . . . . Allies | -11 -10 -9 -9 -------- Run | Yrd Mat Mat Sto Total Allies . | . . . . Largest Group . | . . . . Highest-Rated Group . | . . . . Highest-Rated Ally . | . . . . Total Orders . | . . . . Ally Attacks . | . . . . Total Damage . | . . . . Kills . | . . . . Allies Corrupted . | . . . . Allies Melted . | . . . . Intel | -11 -10 -9 -9 ------- Run | Yrd Mat Mat Sto Active Infowar (turns) 2204 | 2204 . . . Terrain 2204 | 2204 . . . Seismic 2204 | 2204 . . . Robot Analysis Total 7 | 2 . 4 1 Derelict Logs Recovered . | . . . . Drone Launches . | . . . . Drone Recoveries . | . . . . Exploration | -11 -10 -9 -9 ------------- Run | Yrd Mat Mat Sto Turns Passed 3513 | 2241 193 626 453 Spaces Moved 1858 | 1138 201 339 180 Core 149 | 48 . 70 31 Treads 152 | . . 108 44 Legs 188 | . . 83 105 Wheels 1073 | 1073 . . . Hover 296 | 17 201 78 . Flight . | . . . . Fastest Speed 50 | 50 77 50 120 Average Speed 92 | 78 77 118 152 Slowest Speed 250 | 80 77 250 250 Overloaded Moves . | . . . . Propulsion Burnouts . | . . . . Robots Hopped . | . . . . Potential Cave-ins . | . . . . Cave-ins Triggered . | . . . . Exploration Rate (%) 59 | 90 63 38 48 Regions Visited 3 Branch Regions 1 Pre-discovered Areas . | . . . . Known Exits Taken 1 | . . 1 . Unknown Exits Taken 2 | 1 1 . . Scrap Searched . | . . . . Spaces Dug 8 | 2 6 . . Terrain Destroyed 228 | 2 105 121 . Melee . | . . . . Projectile 2 | 2 . . . AOE 226 | . 105 121 . Terrain Rammed . | . . . . Walls Destroyed . | . . . . Machines Disabled . | . . . . Actions | -11 -10 -9 -9 --------- Run | Yrd Mat Mat Sto Total 3419 | 2477 219 443 280 Wait 892 | 832 . 7 53 Move 1855 | 1137 200 338 180 Hop . | . . . . Pick Up . | . . . . Fast Attach . | . . . . Attach . | . . . . Detach . | . . . . Swap . | . . . . Drop . | . . . . Fire 127 | 2 19 76 30 Melee 17 | . . . 17 Ram 1 | . . 1 . Kick 18 | . . 18 . Crush 3 | . . 3 . Escape Stasis . | . . . . Rewire . | . . . . Trap . | . . . . Miscellaneous 506 | 506 . . . Route ------- -11/Scrapyard -10/Materials (discovered 2 exits: *Mat x2) -9/Materials (discovered 4 exits: [*Mat] / *Min x2 / *Sto) -9/Storage History --------- Turn | Location | Event 1 | -11/Scrapyard | Discovered new exit (range 2) 2212 | -11/Scrapyard | Assembled infested the area 2242 | -11/Scrapyard | Entered Materials 2329 | -10/Materials | Discovered new exit (range 12) 2405 | -10/Materials | Discovered new exit (range 14) 2417 | -10/Materials | Core integrity fell below 50% 2435 | -10/Materials | Entered another Materials area 2735 | -9/Materials | Core integrity fell below 50% 2774 | -9/Materials | Lost 3 parts (2n1w) 2822 | -9/Materials | Discovered new exit (range 15) 2966 | -9/Materials | Discovered new exit (range 7) 2967 | -9/Materials | Lost 3 parts (1n2u) 3002 | -9/Materials | Identified exit to Mines 3002 | -9/Materials | Identified exit to Storage 3061 | -9/Materials | Entered Storage 3341 | -9/Storage | Core integrity fell below 20% 3369 | -9/Storage | Lost 3 parts (1u2w) 3461 | -9/Storage | First assault squad dispatched 3514 | -9/Storage | Destroyed by G-34 Mercenary with Small Laser Last Messages --------------- 03453_ Sneak attack on A-02 Transporter. 03454_ R-06 Scavenger collects Aluminum Leg. 03461_ ALERT: Unidentified disturbance in Zone 7Q, assault force dispatched. 03461_ A-02 Transporter destroyed. 03476_ W-16 Scout sends out distress signal. 03486_ Sneak attack on A-02 Transporter. 03489_ C-45 Heavy ARC bursts open, deploying its payload. 03489_ G-47 Trooper unfolds itself. 03489_ G-34 Mercenary unfolds itself. 03489_ B-36 Bruiser unfolds itself. 03489_ I-25 Savior unfolds itself. 03490_ K-01 Serf collects debris. 03502_ A-02 Transporter Lgt. Treads severed. 03504_ Imp. Aluminum Leg destroyed. 03504_ Sneak attack on K-01 Serf. 03504_ K-01 Serf destroyed. 03505_ K-01 Serf collects debris. 03511_ G-34 Mercenary destroyed. 03513_ K-01 Serf collects debris. Map ----- +----------------------------------------------------+ | | | | | | | | | | | | | | | | | ???????????????????######????????????????????????? | | ???????????????????# ??????????????????????? | | ???????????????????# ????????????????????? | | ???????????????????# === ################### | | ???????????????????# === + | | ???????????????????# == ##### ##### #### | | ??????????????????# ??????# #???# #??? | | ??????????????????## ????????# #???# #??? | | ???????????????????######+#????????# ##+##### #??? | | ???????????????????????? ????????# # = ! # #### | | ???????????????????????? ????????# # % # | | ????????????????????????aT ????????+ #"" #*%!%# | | ???????????????????????? a ????????# #"T # # | | ???????????????????????? ????????# #"" %+ !# | | ????????????????????????# #?????#??# # # %# | | ????????????????????????#[#?????#T## ######## # | | ????????????????????????#%#??#!!" # !]######% #%# | | ????????????????????????#l#??#!! + ]%!%] # # | | ???????????????#????????#*#??#!!" # *]###### # # | | ??????????????## ###??### #?????#### ###???##### # | | ??????????????? ?+ Yk#????????# #T#???????# # | | ???????????????? ?# %#?????#### # #???????# # | | ???????????????? """" # #?????# + "???????# # | | ??????????????? """" # gg#?????# # #???????#+# | | ??????????????? """" +bg #?????# ###???????# | | ??????????????? """" #i #?????# #?????????# " | | ?????????????? # #?????# #?????????# " | | ?????????????# ?# u####### #?????????# | | ?????????????# ?# "% +?????????### | | ?????????????#######??# ####### #??????????# | | ??????????????????????#####?????# #??????????# | | ????????????????????????????????# +??????????# | | ????????????????????????????????# #????####### | | ????????????????????????????????# ###### # | | ????????????????????????????????# # | | ????????????????????????????????# + | | ??????????????????????????????" / % # | | ????????????????????????????????## ######## # | | ??????????????????????????+????###+##?????## ### | | ???????????????????????????????# ????# #?? | | ???????????????????????????????# ??# #?? | | ??????????????????????????+????# # #?? | +----------------------------------------------------+ Best States ------------- Heat Dissipation 40 Energy Generation 24 Energy Capacity 215 Matter Stores 150 Matter Capacity 150 Sight Range 16 Terrain Scan Range 16 Terrain Scan Density 10 Armor Coverage 150 Resistance: EX 75 Resistance: I 25 Resistance: S 25 Resistance: P 25 Core Shielding 20 Evasion (%) 55 Melee Accuracy 5 Launcher Accuracy 20 Recoil Reduction 2 Item Schematics ----------------- None Robot Schematics ------------------ None Fabricated ------------ Nothing Repaired ---------- Nothing Studied --------- None Alien Tech Used ----------------- None Achievements -------------- None Challenges ------------ None Polymind | -11 -10 -9 -9 ---------- Run | Yrd Mat Mat Sto Hosts 6 | 2 . 2 2 Combat Hostiles 5 | 1 . 2 2 Allies . | . . . . Unique Host Classes 5 | 2 . 2 1 Average Host Suspicion 56 | 34 93 98 86 Unsuspicious Activity 2580 | 2532 . . 48 Returns to Shadow . | . . . . Fuzzy Dispatches 1 | . . . 1 Protomatter Created 153 | . 65 75 13 Used 150 | 45 . 53 52 Decayed . | . . . . Highest Spend 40 | 40 . 30 29 Top 5 Hosts by Kills: D-53 Grenadier (-11/Scrapyard: 17) Y-45 Defender (-9/Materials: 15) Y-45 Defender (-9/Storage: 9) G-47 Trooper (-9/Materials: 6) L-31 Rogue (-9/Storage: 5) Game ------ Seed SwarmExoskeletonBroadsword Manual? 0 Play Time 00:12:56 Cumulative 1226.0 hours Start 2025.11.21 @ 17:34:19 End 2025.11.21 @ 17:45:09 Sessions 1 Manual Loads 0 Difficulty Rogue Special Mode Winter2022/Polymind Game No. 1508 Rogue 1224 Adventurer 124 Explorer 160 Win Type - Total 57 Types 43/0/8/4/1/0/0/1/0/0 Lore% 93 Gallery% 86 Achievement% 65 Wizard Run 0 Options --------- Layout 0 ASCII 0 Keyboard 1 Movement Numpad Keybinds 0 Fullscreen 2 Font 18/X11 Map View 76x50 Zoom Use 0% Tactical HUD 1 Map Filters NONE Filters NONE Steam 1 RUN: ea37a6b2-e823-43fe-a914-c9073980efe0